lending/lending_fUSD_20241005
["ID","MTS","AMOUNT","RATE_DAILY","PERIOD"]
[339895502,1728147064868,-1307.93,0.00038767,30]
[339895504,1728147064877,-500.0,0.00038767,30]
[339895506,1728147064887,-500.0,0.00038767,30]
[339895508,1728147064896,-500.0,0.00038767,30]
[339895510,1728147064906,-1199.16,0.00038767,30]
[339895512,1728147064915,-500.0,0.00038767,30]
[339895514,1728147064926,-500.0,0.00038767,30]
[339895516,1728147064935,-500.0,0.00038767,30]
[339895518,1728147064947,-500.0,0.00038767,30]
[339895520,1728147064956,-500.0,0.00038767,30]
[339895522,1728147064966,-500.0,0.00038767,30]
[339895524,1728147064976,-500.0,0.00038767,30]
[339895526,1728147064986,-985.84,0.00038767,30]
[339895528,1728147064995,-500.0,0.00038767,30]
[339895530,1728147065005,-500.0,0.00038767,30]
[339895532,1728147065015,-500.0,0.00038767,30]
[339895534,1728147065025,-500.0,0.00038767,30]
[339895535,1728147065035,-500.0,0.00038767,30]
[339895536,1728147065045,-1049.3,0.00038767,30]
[339895537,1728147065055,-1294.19,0.00038767,30]
[339895538,1728147065065,-687.14,0.00038767,30]
[339895539,1728147065075,-500.0,0.00038767,30]
[339895540,1728147065084,-793.27,0.00038767,30]
[339895541,1728147065094,-500.0,0.00038767,30]
[339895542,1728147065103,-500.0,0.00038767,30]
[339895543,1728147065113,-500.0,0.00038767,30]
[339895544,1728147065123,-500.0,0.00038767,30]
[339895562,1728147065304,-2888.1,0.00038767,30]
[339895564,1728147065334,-500.0,0.00038767,30]
[339895566,1728147065343,-500.0,0.00038767,30]
[339895568,1728147065353,-500.0,0.00038767,30]
[339895569,1728147065362,-500.0,0.00038767,30]
[339895571,1728147065372,-500.0,0.00038767,30]
[339895573,1728147065381,-989.98,0.00038767,30]
[339895575,1728147065390,-500.0,0.00038767,30]
[339895577,1728147065399,-500.0,0.00038767,30]
[339895579,1728147065408,-1432.95,0.00038767,30]
[339895581,1728147065418,-724.21,0.00038767,30]
[339895583,1728147065427,-550.68,0.00038767,30]
[339895585,1728147065437,-543.28,0.00038767,30]
[339895587,1728147065448,-500.0,0.00038767,30]
[339895589,1728147065457,-753.39,0.00038767,30]
[339895591,1728147065466,-807.23,0.00038767,30]
[339895593,1728147065475,-500.0,0.00038767,30]
[339895595,1728147065485,-500.0,0.00038767,30]
[339895597,1728147065494,-500.0,0.00038767,30]
[339895598,1728147065503,-708.64,0.00038767,30]
[339895600,1728147065512,-562.5,0.00038767,30]
[339895602,1728147065521,-500.0,0.00038767,30]
[339895604,1728147065531,-500.0,0.00038767,30]
[339895606,1728147065540,-575.54018752,0.00038767,30]
[339895608,1728147065549,-500.0,0.00038767,30]
[339895610,1728147065558,-314.47232827,0.00038767,30]
[339895612,1728147065568,-500.0,0.00038767,30]
[339895614,1728147065577,-687.72,0.00038767,30]
[339895616,1728147065587,-500.0,0.00038767,30]
[339895618,1728147065596,-1195.82,0.00038767,30]
[339895620,1728147065605,-500.0,0.00038767,30]
[339895622,1728147065614,-905.32,0.00038767,7]
[339895624,1728147065623,-968.05,0.00038767,30]
[339895626,1728147065633,-1289.36,0.00038767,30]
[339895628,1728147065642,-763.68,0.00038767,30]
[339895630,1728147065651,-1417.19,0.00038767,30]
[339895632,1728147065661,-500.0,0.00038767,30]
[339895634,1728147065670,-500.0,0.00038767,30]
[339895636,1728147065680,-506.9244257,0.00038767,30]
[339895638,1728147065689,-500.0,0.00038767,30]
[339895640,1728147065700,-1687.35,0.00038767,30]
[339895642,1728147065717,-500.0,0.00038767,30]
[339895644,1728147065726,-888.0,0.00038767,120]
[339895646,1728147065735,-500.0,0.00038767,30]
[339895648,1728147065744,-785.36,0.00038767,30]
[339895650,1728147065754,-500.0,0.00038767,30]
[339895652,1728147065763,-500.0,0.00038767,30]
[339895654,1728147065772,-500.0,0.00038767,30]
[339895656,1728147065782,-500.0,0.00038767,30]
[339895658,1728147065791,-1179.64,0.00038767,30]
[339895660,1728147065800,-500.0,0.00038767,30]
[339895661,1728147065810,-582.36,0.00038767,30]
[339895664,1728147065819,-500.0,0.00038767,30]
[339895665,1728147065829,-500.0,0.00038767,30]
[339895668,1728147065838,-500.0,0.00038767,30]
[339895669,1728147065847,-643.53,0.00038767,30]
[339895671,1728147065857,-500.0,0.00038767,30]
[339895673,1728147065866,-1536.92,0.00038767,30]
[339895675,1728147065876,-500.0,0.00038767,30]
[339895677,1728147065886,-500.0,0.00038767,30]
[339895680,1728147065897,-711.86,0.00038767,30]
[339895682,1728147065906,-1213.33,0.00038767,30]
[339895683,1728147065916,-533.33,0.00038767,30]
[339895685,1728147065926,-500.0,0.00038767,30]
[339895687,1728147065935,-1142.18,0.00038767,30]
[339895689,1728147065944,-500.0,0.00038767,30]
[339895691,1728147065955,-786.32,0.00038767,30]
[339895693,1728147065964,-500.0,0.00038767,30]
[339895695,1728147065973,-500.0,0.00038767,30]
[339895697,1728147065983,-1479.11,0.00038767,30]
[339895699,1728147065992,-500.0,0.00038767,30]
[339895701,1728147066001,-649.26,0.00038767,30]
[339895703,1728147066010,-500.0,0.00038767,30]
[339895706,1728147066020,-903.52,0.00038767,30]
[339895708,1728147066029,-500.0,0.00038767,30]
[339895710,1728147066038,-915.1,0.00038767,30]
[339895712,1728147066047,-500.0,0.00038767,30]
[339895714,1728147066056,-500.0,0.00038767,30]
[339895716,1728147066066,-642.95,0.00038767,30]
[339895718,1728147066075,-500.0,0.00038767,30]
[339895720,1728147066084,-500.0,0.00038767,30]
[339895722,1728147066094,-931.55,0.00038767,30]
[339895724,1728147066103,-500.0,0.00038767,30]
[339895726,1728147066112,-500.0,0.00038767,30]
[339895728,1728147066121,-1521.03,0.00038767,30]
[339895730,1728147066131,-500.0,0.00038767,30]
[339895732,1728147066140,-500.0,0.00038767,30]
[339895734,1728147066149,-500.0,0.00038767,30]
[339895736,1728147066158,-1032.8,0.00038767,30]
[339895737,1728147066168,-1011.56,0.00038767,30]
[339895739,1728147066178,-500.0,0.00038767,30]
[339895741,1728147066187,-500.0,0.00038767,30]
[339895743,1728147066199,-623.62780202,0.00038767,5]
[339895745,1728147066208,-500.0,0.00038767,30]
[339895747,1728147066218,-500.0,0.00038767,30]
[339895749,1728147066228,-901.49,0.00038767,30]
[339895751,1728147066237,-500.0,0.00038767,30]
[339895753,1728147066246,-1061.61,0.00038767,30]
[339895755,1728147066255,-1304.21,0.00038767,30]
[339895757,1728147066265,-701.97,0.00038767,30]
[339895759,1728147066275,-500.0,0.00038767,30]
[339895761,1728147066284,-534.36,0.00038767,30]
[339895763,1728147066293,-589.66,0.00038767,30]
[339895765,1728147066303,-512.82,0.00038767,30]
[339895767,1728147066312,-500.0,0.00038767,30]
[339895769,1728147066321,-500.0,0.00038767,30]
[339895772,1728147066333,-500.0,0.00038767,30]
[339895774,1728147066343,-500.0,0.00038767,30]
[339895776,1728147066352,-1198.94,0.00038767,30]
[339895778,1728147066361,-500.0,0.00038767,30]
[339895780,1728147066372,-836.31,0.00038767,30]
[339895782,1728147066382,-908.97,0.00038767,30]
[339895784,1728147066392,-714.05,0.00038767,30]
[339895786,1728147066403,-500.0,0.00038767,30]
[339895788,1728147066413,-500.0,0.00038767,30]
[339895790,1728147066423,-787.9,0.00038767,30]
[339895792,1728147066433,-500.0,0.00038767,30]
[339895794,1728147066443,-530.83,0.00038767,30]
[339895796,1728147066458,-500.0,0.00038767,30]
[339895798,1728147066468,-1485.49,0.00038767,30]
[339895800,1728147066477,-500.0,0.00038767,30]
[339895802,1728147066487,-500.0,0.00038767,30]
[339895804,1728147066496,-500.0,0.00038767,30]
[339895806,1728147066505,-500.0,0.00038767,30]
[339895808,1728147066515,-500.0,0.00038767,30]
[339895810,1728147066525,-565.26135732,0.00038767,30]
[339895812,1728147066535,-518.08,0.00038767,30]
[339895814,1728147066544,-763.04,0.00038767,30]
[339895817,1728147066555,-500.0,0.00038767,30]
[339895819,1728147066565,-500.0,0.00038767,30]
[339895821,1728147066575,-500.0,0.00038767,30]
[339895823,1728147066584,-500.0,0.00038767,30]
[339895825,1728147066594,-612.29,0.00038767,30]
[339895827,1728147066603,-563.43,0.00038767,30]
[339895829,1728147066613,-500.0,0.00038767,30]
[339895831,1728147066623,-500.0,0.00038767,30]
[339895833,1728147066632,-822.39,0.00038767,30]
[339895835,1728147066642,-500.0,0.00038767,30]
[339895837,1728147066651,-1306.65,0.00038767,30]
[339895839,1728147066661,-1233.21,0.00038767,30]
[339895841,1728147066671,-583.48,0.00038767,30]
[339895843,1728147066681,-500.0,0.00038767,30]
[339895845,1728147066690,-540.86700814,0.00038767,30]
[339895847,1728147066704,-868.45,0.00038767,30]
[339895849,1728147066714,-732.59,0.00038767,30]
[339895851,1728147066724,-500.0,0.00038767,30]
[339895853,1728147066734,-500.0,0.00038767,30]
[339895855,1728147066744,-500.0,0.00038767,30]
[339895857,1728147066754,-500.0,0.00038767,30]
[339895859,1728147066765,-500.0,0.00038767,30]
[339895861,1728147066774,-500.0,0.00038767,30]
[339895863,1728147066785,-1321.45,0.00038767,30]
[339895865,1728147066794,-500.0,0.00038767,30]
[339895867,1728147066804,-500.0,0.00038767,30]
[339895869,1728147066814,-528.8,0.00038767,30]
[339895871,1728147066824,-500.0,0.00038767,30]
[339895873,1728147066833,-658.55,0.00038767,30]
[339895875,1728147066842,-500.0,0.00038767,30]
[339895877,1728147066851,-500.0,0.00038767,30]
[339895879,1728147066860,-500.0,0.00038767,30]
[339895882,1728147066870,-993.81,0.00038767,30]
[339895884,1728147066879,-500.0,0.00038767,30]
[339895886,1728147066889,-500.0,0.00038767,30]
[339895888,1728147066898,-500.0,0.00038767,30]
[339895890,1728147066907,-500.0,0.00038767,30]
[339895892,1728147066916,-500.0,0.00038767,30]
[339895894,1728147066926,-500.0,0.00038767,30]
[339895896,1728147066935,-500.0,0.00038767,30]
[339895898,1728147066944,-500.0,0.00038767,30]
[339895900,1728147066955,-953.14,0.00038767,30]
[339895902,1728147066964,-500.0,0.00038767,30]
[339895904,1728147066974,-500.0,0.00038767,30]
[339895906,1728147066983,-694.83,0.00038767,30]
[339895908,1728147066992,-1392.91,0.00038767,30]
[339895910,1728147067001,-500.0,0.00038767,30]
[339895912,1728147067010,-500.0,0.00038767,30]
[339895914,1728147067019,-500.0,0.00038767,30]
[339895916,1728147067028,-500.0,0.00038767,30]
[339895918,1728147067037,-500.0,0.00038767,30]
[339895920,1728147067046,-500.0,0.00038767,30]
[339895922,1728147067055,-500.0,0.00038767,30]
[339895924,1728147067064,-500.0,0.00038767,30]
[339895926,1728147067073,-500.0,0.00038767,30]
[339895927,1728147067082,-698.41,0.00038767,30]
[339895928,1728147067091,-771.14,0.00038767,30]
[339895929,1728147067100,-500.0,0.00038767,30]
[339895930,1728147067109,-885.57,0.00038767,30]
[339895931,1728147067118,-500.0,0.00038767,30]
[339895932,1728147067128,-500.0,0.00038767,30]
[339895933,1728147067137,-611.53725176,0.00038767,30]
[339895934,1728147067146,-500.0,0.00038767,30]
[339895935,1728147067155,-500.0,0.00038767,30]
[339895936,1728147067164,-1011.8,0.00038767,30]
[339895937,1728147067173,-563.02,0.00038767,30]
[339895938,1728147067183,-702.92,0.00038767,30]
[339895940,1728147067192,-500.0,0.00038767,30]
[339895942,1728147067202,-221.78731018,0.00038767,30]
[339895944,1728147067210,-1294.33,0.00038767,30]
[339895945,1728147067219,-690.04,0.00038767,30]
[339895947,1728147067229,-1565.99,0.00038767,30]
[339895949,1728147067238,-918.37,0.00038767,30]
[339895951,1728147067247,-500.0,0.00038767,30]
[339895953,1728147067256,-666.23,0.00038767,30]
[339895955,1728147067266,-500.0,0.00038767,30]
[339895957,1728147067275,-894.45,0.00038767,30]
[339895959,1728147067284,-500.0,0.00038767,30]
[339895961,1728147067293,-500.0,0.00038767,30]
[339895963,1728147067303,-762.45,0.00038767,30]
[339895965,1728147067312,-500.0,0.00038767,30]
[339895967,1728147067321,-1037.04,0.00038767,30]
[339895968,1728147067330,-729.96,0.00038767,30]
[339895970,1728147067339,-588.86,0.00038767,30]
[339895972,1728147067348,-500.0,0.00038767,30]
[339895974,1728147067358,-500.0,0.00038767,30]
[339895976,1728147067367,-500.0,0.00038767,30]
[339895978,1728147067377,-500.0,0.00038767,30]
[339895980,1728147067386,-500.0,0.00038767,30]
[339895982,1728147067395,-500.0,0.00038767,30]
[339895984,1728147067404,-922.09,0.00038767,30]
[339895985,1728147067413,-500.0,0.00038767,30]
[339895987,1728147067422,-500.0,0.00038767,30]
[339895989,1728147067431,-500.0,0.00038767,30]
[339895991,1728147067441,-500.0,0.00038767,30]
[339895993,1728147067451,-500.0,0.00038767,30]
[339895995,1728147067460,-500.0,0.00038767,30]
[339895997,1728147067469,-500.0,0.00038767,30]
[339895999,1728147067478,-500.0,0.00038767,30]
[339896001,1728147067487,-500.0,0.00038767,30]
[339896003,1728147067497,-500.0,0.00038767,30]
[339896005,1728147067506,-500.0,0.00038767,30]
[339896006,1728147067515,-500.0,0.00038767,30]
[339896008,1728147067524,-1207.02,0.00038767,30]
[339896010,1728147067533,-1060.1,0.00038767,30]
[339896012,1728147067543,-500.0,0.00038767,30]
[339896014,1728147067552,-502.30266527,0.00038767,2]
[339896016,1728147067561,-500.0,0.00038767,30]
[339896018,1728147067571,-500.0,0.00038767,30]
[339896020,1728147067580,-500.0,0.00038767,30]
[339896022,1728147067590,-501.25,0.00038767,30]
[339896024,1728147067599,-500.0,0.00038767,30]
[339896026,1728147067608,-525.19,0.00038767,30]
[339896028,1728147067617,-500.0,0.00038767,30]
[339896030,1728147067626,-500.0,0.00038767,30]
[339896032,1728147067635,-668.81,0.00038767,30]
[339896042,1728147067716,-500.0,0.00038767,30]
[339896044,1728147067726,-648.61,0.00038767,30]
[339896046,1728147067735,-500.0,0.00038767,30]
[339896048,1728147067744,-500.0,0.00038767,30]
[339896050,1728147067753,-500.0,0.00038767,30]
[339896052,1728147067762,-507.13893471,0.00038767,30]
[339896054,1728147067771,-500.0,0.00038767,30]
[339896056,1728147067780,-1480.12,0.00038767,30]
[339896058,1728147067790,-500.0,0.00038767,30]
[339896060,1728147067799,-500.0,0.00038767,30]
[339896062,1728147067808,-500.0,0.00038767,30]
[339896064,1728147067817,-500.0,0.00038767,30]
[339896066,1728147067826,-1830.42,0.00038767,30]
[339896068,1728147067836,-500.0,0.00038767,30]
[339896070,1728147067845,-500.0,0.00038767,30]
[339896071,1728147067854,-500.0,0.00038767,30]
[339896073,1728147067863,-1094.29,0.00038767,30]
[339896075,1728147067872,-692.2,0.00038767,30]
[339896077,1728147067882,-1171.31,0.00038767,30]
[339896079,1728147067891,-500.0,0.00038767,30]
[339896081,1728147067900,-500.0,0.00038767,30]
[339896083,1728147067909,-537.83670858,0.00038767,30]
[339896085,1728147067919,-1156.11,0.00038767,30]
[339896087,1728147067929,-980.64,0.00038767,30]
[339896088,1728147067937,-993.33,0.00038767,30]
[339896090,1728147067946,-500.0,0.00038767,30]
[339896092,1728147067956,-500.0,0.00038767,30]
[339896094,1728147067965,-759.97,0.00038767,30]
[339896096,1728147067974,-500.0,0.00038767,30]
[339896098,1728147067984,-500.0,0.00038767,30]
[339896100,1728147067993,-500.0,0.00038767,30]
[339896102,1728147068002,-809.87,0.00038767,30]
[339896103,1728147068011,-500.0,0.00038767,30]
[339896105,1728147068020,-500.0,0.00038767,30]
[339896107,1728147068029,-500.0,0.00038767,30]
[339896109,1728147068038,-500.0,0.00038767,30]
[339896111,1728147068047,-500.0,0.00038767,30]
[339896113,1728147068056,-500.0,0.00038767,30]
[339896114,1728147068065,-1128.79,0.00038767,30]
[339896116,1728147068074,-620.59,0.00038767,30]
[339896118,1728147068083,-500.0,0.00038767,30]
[339896120,1728147068092,-1212.72,0.00038767,30]
[339896122,1728147068101,-1002.95,0.00038767,30]
[339896124,1728147068109,-737.61,0.00038767,30]
[339896126,1728147068119,-500.0,0.00038767,30]
[339896127,1728147068128,-524.73,0.00038767,30]
[339896129,1728147068137,-500.0,0.00038767,30]
[339896131,1728147068146,-500.0,0.00038767,30]
[339896133,1728147068155,-503.42326096,0.00038767,30]
[339896135,1728147068164,-1377.95,0.00038767,30]
[339896137,1728147068173,-1543.57,0.00038767,30]
[339896138,1728147068182,-813.84,0.00038767,30]
[339896140,1728147068192,-531.1,0.00038767,30]
[339896142,1728147068202,-500.0,0.00038767,30]
[339896144,1728147068211,-500.0,0.00038767,30]
[339896146,1728147068220,-500.0,0.00038767,30]
[339896148,1728147068230,-500.0,0.00038767,30]
[339896150,1728147068239,-500.0,0.00038767,30]
[339896152,1728147068248,-961.07,0.00038767,30]
[339896154,1728147068257,-500.0,0.00038767,30]
[339896156,1728147068266,-784.98,0.00038767,30]
[339896158,1728147068276,-500.0,0.00038767,30]
[339896160,1728147068284,-711.97,0.00038767,30]
[339896161,1728147068293,-917.69,0.00038767,30]
[339896163,1728147068302,-500.0,0.00038767,30]
[339896165,1728147068311,-500.0,0.00038767,30]
[339896167,1728147068320,-500.0,0.00038767,30]
[339896169,1728147068333,-500.0,0.00038767,30]
[339896171,1728147068342,-500.0,0.00038767,30]
[339896173,1728147068351,-500.0,0.00038767,30]
[339896175,1728147068363,-500.0,0.00038767,30]
[339896177,1728147068373,-906.22,0.00038767,30]
[339896179,1728147068383,-782.36,0.00038767,30]
[339896181,1728147068393,-677.3,0.00038767,30]
[339896183,1728147068403,-500.0,0.00038767,30]
[339896185,1728147068414,-500.0,0.00038767,30]
[339896188,1728147068424,-151.0,0.00038767,14]
[339896190,1728147068433,-1205.88,0.00038767,30]
[339896192,1728147068443,-910.94,0.00038767,30]
[339896194,1728147068454,-580.9655055,0.00038767,30]
[339896196,1728147068463,-500.0,0.00038767,30]
[339896197,1728147068473,-1344.47,0.00038767,30]
[339896199,1728147068482,-542.61,0.00038767,30]
[339896202,1728147068492,-500.0,0.00038767,30]
[339896204,1728147068502,-814.32,0.00038767,30]
[339896206,1728147068511,-500.0,0.00038767,30]
[339896208,1728147068521,-500.0,0.00038767,30]
[339896210,1728147068531,-948.43,0.00038767,30]
[339896211,1728147068540,-500.0,0.00038767,30]
[339896213,1728147068550,-500.0,0.00038767,30]
[339896215,1728147068559,-500.0,0.00038767,30]
[339896217,1728147068569,-500.0,0.00038767,30]
[339896219,1728147068579,-500.0,0.00038767,30]
[339896221,1728147068588,-500.0,0.00038767,30]
[339896223,1728147068597,-676.76,0.00038767,30]
[339896226,1728147068607,-250.0,0.00038767,14]
[339896228,1728147068618,-1066.49,0.00038767,30]
[339896230,1728147068628,-500.0,0.00038767,30]
[339896232,1728147068638,-151.0,0.00038767,14]
[339896234,1728147068648,-1541.44,0.00038767,30]
[339896236,1728147068658,-500.0,0.00038767,30]
[339896238,1728147068668,-500.0,0.00038767,30]
[339896240,1728147068678,-1381.37,0.00038767,30]
[339896242,1728147068688,-500.0,0.00038767,30]
[339896244,1728147068698,-500.0,0.00038767,30]
[339896246,1728147068710,-500.0,0.00038767,30]
[339896248,1728147068721,-500.0,0.00038767,30]
[339896250,1728147068731,-500.0,0.00038767,30]
[339896252,1728147068742,-250.0,0.00038767,14]
[339896254,1728147068752,-500.0,0.00038767,30]
[339896256,1728147068762,-500.0,0.00038767,30]
[339896258,1728147068772,-500.0,0.00038767,30]
[339896260,1728147068783,-500.0,0.00038767,30]
[339896263,1728147068793,-500.0,0.00038767,30]
[339896265,1728147068804,-500.0,0.00038767,30]
[339896267,1728147068814,-500.0,0.00038767,30]
[339896269,1728147068825,-1117.39,0.00038767,30]
[339896271,1728147068835,-1320.61,0.00038767,30]
[339896273,1728147068846,-659.62,0.00038767,30]
[339896275,1728147068856,-500.0,0.00038767,30]
[339896277,1728147068866,-500.0,0.00038767,30]
[339896279,1728147068876,-500.0,0.00038767,30]
[339896281,1728147068887,-500.0,0.00038767,30]
[339896283,1728147068897,-500.0,0.00038767,30]
[339896285,1728147068908,-1392.32,0.00038767,30]
[339896287,1728147068918,-500.0,0.00038767,30]
[339896289,1728147068930,-500.0,0.00038767,30]
[339896292,1728147068941,-500.0,0.00038767,30]
[339896293,1728147068952,-500.0,0.00038767,30]
[339896296,1728147068968,-508.03615753,0.00038767,30]
[339896297,1728147068978,-500.0,0.00038767,30]
[339896299,1728147068988,-500.0,0.00038767,30]
[339896302,1728147068998,-500.0,0.00038767,30]
[339896304,1728147069009,-1450.24,0.00038767,30]
[339896305,1728147069019,-995.8,0.00038767,30]
[339896306,1728147069029,-2170.1,0.00038767,30]
[339896307,1728147069039,-500.0,0.00038767,30]
[339896308,1728147069048,-1452.19,0.00038767,30]
[339896309,1728147069058,-877.02,0.00038767,30]
[339896310,1728147069068,-182.03,0.00038767,30]
[339896311,1728147069078,-500.0,0.00038767,30]
[339896312,1728147069088,-500.0,0.00038767,30]
[339896313,1728147069099,-746.73,0.00038767,30]
[339896314,1728147069110,-1409.59,0.00038767,30]
[339896316,1728147069121,-679.22,0.00038767,30]
[339896318,1728147069131,-500.0,0.00038767,30]
[339896320,1728147069142,-1020.04,0.00038767,30]
[339896322,1728147069153,-569.48,0.00038767,30]
[339896324,1728147069163,-666.18,0.00038767,30]
[339896326,1728147069172,-500.0,0.00038767,30]
[339896328,1728147069183,-500.0,0.00038767,30]
[339896330,1728147069193,-500.0,0.00038767,30]
[339896332,1728147069211,-1089.28,0.00038767,30]
[339896334,1728147069223,-980.44,0.00038767,30]
[339896336,1728147069233,-500.0,0.00038767,30]
[339896338,1728147069243,-568.81,0.00038767,30]
[339896341,1728147069253,-1673.25,0.00038767,30]
[339896343,1728147069263,-1354.9,0.00038767,30]
[339896345,1728147069275,-500.0,0.00038767,30]
[339896347,1728147069285,-3092.09,0.00038767,30]
[339896349,1728147069295,-500.0,0.00038767,30]
[339896351,1728147069305,-1117.04,0.00038767,30]
[339896353,1728147069315,-500.0,0.00038767,30]
[339896355,1728147069325,-500.0,0.00038767,30]
[339896357,1728147069335,-500.0,0.00038767,30]
[339896359,1728147069345,-500.0,0.00038767,30]
[339896361,1728147069355,-1400.9,0.00038767,30]
[339896363,1728147069365,-500.0,0.00038767,30]
[339896365,1728147069376,-521.3,0.00038767,30]
[339896367,1728147069387,-957.32,0.00038767,30]
[339896369,1728147069398,-542.25878194,0.00038767,30]
[339896371,1728147069408,-500.0,0.00038767,30]
[339896374,1728147069419,-500.0,0.00038767,30]
[339896376,1728147069430,-532.54,0.00038767,30]
[339896378,1728147069441,-500.0,0.00038767,30]
[339896380,1728147069453,-500.0,0.00038767,30]
[339896382,1728147069466,-500.0,0.00038767,30]
[339896384,1728147069476,-151.0,0.00038767,14]
[339896386,1728147069487,-500.0,0.00038767,30]
[339896388,1728147069497,-613.27,0.00038767,30]
[339896390,1728147069508,-500.0,0.00038767,30]
[339896392,1728147069522,-500.0,0.00038767,30]
[339896395,1728147069537,-1461.62,0.00038767,30]
[339896397,1728147069551,-551.78,0.00038767,30]
[339896399,1728147069563,-815.17,0.00038767,30]
[339896401,1728147069578,-500.0,0.00038767,30]
[339896404,1728147069593,-500.0,0.00038767,30]
[339896406,1728147069608,-500.0,0.00038767,30]
[339896409,1728147069624,-833.62,0.00038767,30]
[339896411,1728147069637,-500.0,0.00038767,30]
[339896414,1728147069651,-973.8,0.00038767,30]
[339896416,1728147069666,-500.0,0.00038767,30]
[339896418,1728147069680,-749.79,0.00038767,30]
[339896421,1728147069692,-500.0,0.00038767,30]
[339896423,1728147069705,-500.0,0.00038767,30]
[339896425,1728147069720,-500.0,0.00038767,30]
[339896428,1728147069735,-552.5,0.00038767,30]
[339896430,1728147069752,-500.0,0.00038767,30]
[339896433,1728147069763,-500.0,0.00038767,30]
[339896435,1728147069775,-500.0,0.00038767,30]
[339896437,1728147069788,-500.0,0.00038767,30]
[339896440,1728147069804,-500.0,0.00038767,30]
[339896442,1728147069818,-595.63,0.00038767,30]
[339896444,1728147069831,-500.0,0.00038767,30]
[339896447,1728147069846,-500.0,0.00038767,30]
[339896449,1728147069858,-500.0,0.00038767,30]
[339896451,1728147069871,-895.17,0.00038767,30]
[339896454,1728147069884,-538.69,0.00038767,30]
[339896456,1728147069897,-716.85,0.00038767,30]
[339896458,1728147069910,-500.0,0.00038767,30]
[339896460,1728147069922,-500.0,0.00038767,30]
[339896462,1728147069935,-500.0,0.00038767,30]
[339896464,1728147069947,-500.0,0.00038767,30]
[339896467,1728147069961,-500.0,0.00038767,30]
[339896469,1728147069974,-734.46,0.00038767,30]
[339896471,1728147069986,-500.0,0.00038767,30]
[339896473,1728147069999,-500.0,0.00038767,30]
[339896476,1728147070012,-744.23,0.00038767,30]
[339896478,1728147070025,-500.0,0.00038767,30]
[339896480,1728147070038,-500.0,0.00038767,30]
[339896482,1728147070050,-1043.16,0.00038767,30]
[339896485,1728147070064,-544.13,0.00038767,30]
[339896487,1728147070077,-500.0,0.00038767,30]
[339896489,1728147070089,-526.24,0.00038767,30]
[339896492,1728147070102,-649.58,0.00038767,30]
[339896494,1728147070115,-837.39,0.00038767,30]
[339896496,1728147070128,-500.0,0.00038767,30]
[339896498,1728147070141,-500.0,0.00038767,30]
[339896501,1728147070154,-500.0,0.00038767,30]